Cogmind - Beta 15 *** ADVENTURER MODE // 2025.06.09 @ 13:09:24 Player: triibiis Result: Destroyed by G-34 Mercenary with Small Laser Performance ------------- Evolutions (1) 500 Regions Visited (2) 400 Robots Destroyed (25) 125 Value Destroyed (761) 761 Prototype IDs (0) 0 Alien Tech Used (0) 0 Bonus (0) 0 TOTAL SCORE: 1786 Bonus ------- None Cogmind --------- Core Integrity 0/400 Matter 300/300 Energy 100/100 System Corruption 0% Temperature Cool (6) Movement Core (200) Ox3 Location -9/Materials Parts ------- > --- POWER (2) -------- (None) > --- PROPULSION (3) --- (None) > --- UTILITY (2) ------ Medium Storage Unit Terrain Scan Processor > --- WEAPON (2) ------- (None) > --- INVENTORY (10) --- Wheel Peak State ------------ > --- POWER ------------ Light Nuclear Core > --- PROPULSION ------- Light Treads Light Treads > --- UTILITY ---------- Small Storage Unit Sensor Array > --- WEAPON ----------- Assault Rifle Grenade Launcher > --- INVENTORY -------- Ion Engine Light Ion Engine Light Treads Wheel Terrain Scan Processor Medium Laser Small Laser [Rating: 9] Favorites ----------- Power Ion Engine Engine Ion Engine Power Core Light Nuclear Core Propulsion Light Treads Treads Light Treads Leg Aluminum Leg Wheel Wheel Utility Small Storage Unit Device Sensor Array Storage Small Storage Unit Processor Terrain Scan Processor Weapon Medium Laser Energy Gun Medium Laser Energy Cannon Beam Cannon Ballistic Gun Assault Rifle Launcher Grenade Launcher Special Weapon Mining Laser Special Melee Weapon Datajack Build | -11 -10 -9 ------- Run | Yrd Mat Mat Slots Evolved 2 | . . 2 Power 1 | . . 1 Propulsion 1 | . . 1 Utility . | . . . Weapon . | . . . Parts Attached 24 | 7 7 10 Power 6 | 1 3 2 Engine 5 | 1 2 2 Core 1 | . 1 . Reactor . | . . . Propulsion 7 | 3 . 4 Treads 3 | 2 . 1 Leg 3 | . . 3 Wheel 1 | 1 . . Hover . | . . . Flight . | . . . Utility 4 | 1 1 2 Device 1 | . 1 . Storage 2 | 1 . 1 Processor 1 | . . 1 Hackware . | . . . Protection . | . . . Artifact . | . . . Weapon 7 | 2 3 2 Energy Gun 2 | 1 . 1 Energy Cannon 1 | . . 1 Ballistic Gun 1 | 1 . . Ballistic Cannon . | . . . Launcher 1 | . 1 . Special Weapon 1 | . 1 . Impact Weapon . | . . . Slashing Weapon . | . . . Piercing Weapon . | . . . Special Melee Weapon 1 | . 1 . Unidentified Prototypes . | . . . Parts Lost 17 | . 7 10 Power 5 | . 1 4 Propulsion 6 | . 2 4 Utility 1 | . 1 . Weapon 5 | . 3 2 Highest Loss Streak 10 | . 5 10 To Critical Strikes . | . . . Average Backups 5 | 1 6 2 Power 1 | . 1 1 Propulsion 1 | . 1 1 Utility . | . . . Weapon 1 | . 2 . Tool/Special . | . . . Unused Backups . | . . . Power . | . . . Propulsion . | . . . Utility . | . . . Weapon . | . . . Tool/Special . | . . . Average Slot Usage (%) 80 | . 86 69 Engine 9 | . 6 17 Core 4 | . 6 . Treads 18 | . 22 9 Device 6 | . 8 . Storage 13 | . 14 11 Processor 3 | . . 10 Energy Gun 7 | . 4 14 Energy Cannon 1 | . . 5 Ballistic Gun 7 | . 10 . Launcher 6 | . 9 . Special Weapon 1 | . 2 . Peak Build Rating 9 | 6 9 8 Average Rating 6 | 4 6 7 On Entrance 3 | . 6 3 Naked Turns . | . . . Heaviest Build 25 | 14 16 25 Greatest Support 40 | 40 40 20 Greatest Overweight (x) 5 | . 3 5 Average Overweight (x) . | . . . Largest Inventory Capacity 10 | 8 8 10 Average Capacity 8 | 6 8 9 Most Carried 8 | 3 8 5 Average Carried 5 | 1 6 2 Final Capacity 10 | 8 8 10 Final Carried 6 | 3 6 1 Class Distribution -------------------- 100% | Mutant Dominant Class ---------------- Mutant | -10/Materials Mutant | -9/Materials Resources | -11 -10 -9 ----------- Run | Yrd Mat Mat Matter Collected 743 | 250 261 232 Remotely . | . . . Salvage Created 797 | . 496 301 Parts 44 | . 30 14 Haulers Intercepted . | . . . Recyclers Shooed 1 | . . 1 Parts Field Recycled . | . . . Retrieved Matter . | . . . Parts Self-Destructed . | . . . Prevented . | . . . Kills | -11 -10 -9 ------- Run | Yrd Mat Mat Combat Hostiles Destroyed 19 | . 14 5 Guns 9 | . 6 3 Cannons 2 | . . 2 AOE 8 | . 8 . Classes Destroyed 6 | . 5 1 Worker 2 | . 1 1 Builder 1 | . 1 . Tunneler 1 | . 1 . Recycler 1 | . . 1 Watcher 1 | . 1 . Grunt 19 | . 14 5 Best Kill Streak 5 | . 5 3 Combat Bots Only 4 | . 4 2 Max Kills in Single Turn 2 | . 2 1 Gunslinging . | . . . Exploded 2 | . 2 . Melee . | . . . Uniques/NPCs Destroyed . | . . . Combat | -11 -10 -9 -------- Run | Yrd Mat Mat Hostile Shots Fired 250 | . 107 143 Missed 62 | . 29 33 Hits 188 | . 78 110 Melee 9 | . . 9 Projectile 179 | . 78 101 Critical Strikes 4 | . 2 2 Damage Taken 2020 | . 848 1172 Core 593 | . 187 406 Absorbed by Shields . | . . . Ignored by Resistances 605 | . 260 345 Core Remaining (%) 62 | 100 25 . Volleys Fired 67 | . 48 19 Largest 2 | . 2 2 Hottest 150 | . 150 110 Shots Fired 106 | . 69 37 Gun 72 | . 48 24 Cannon 13 | . . 13 Launcher 18 | . 18 . Special 3 | . 3 . Kinetic 32 | . 32 . Thermal 56 | . 19 37 Explosive 18 | . 18 . Electromagnetic . | . . . Robot Hit Streak 24 | . 24 15 Robot Miss Streak 2 | . 1 2 Penetration Max . | . . . Secondary Targets . | . . . Shots Hit Robots 85 | . 59 26 Core Hits 50 | . 36 14 Critical Kills . | . . . Critical Parts Destroyed 1 | . 1 . Critical Strikes 3 | . 1 2 Burn 2 | . . 2 Destroy 1 | . 1 . Melee Attacks . | . . . Impact . | . . . Slashing . | . . . Piercing . | . . . Sneak Attacks . | . . . Combat Hostiles . | . . . Follow-up Attacks . | . . . Damage Inflicted 1904 | . 1519 385 Guns 805 | . 557 248 Cannons 123 | . . 123 Explosions 955 | . 955 . Melee . | . . . Ramming 21 | . 7 14 Kinetic 357 | . 357 . Thermal 571 | . 200 371 Explosive 919 | . 919 . Electromagnetic 36 | . 36 . Impact . | . . . Slashing . | . . . Piercing . | . . . Highest Corruption . | . . . Average Corruption . | . . . Corruption Purged . | . . . Corruption Blocked . | . . . Overload Shots . | . . . Overflow Damage . | . . . Projectiles . | . . . Explosions . | . . . Melee . | . . . Knockbacks . | . . . Impact . | . . . Kinetic . | . . . Secondary . | . . . Self-Inflicted Damage 130 | . 130 . Shots 7 | . 7 . Rammed 3 | . 2 1 Targets Rammed 10 | . 2 8 Kicked 7 | . . 7 Crushed . | . . . Highest Temperature 539 | . 202 539 Average Temperature 113 | . 50 164 Received Heat Transfer 1155 | . 561 594 Effects 8 | . . 8 Shutdowns 3 | . . 3 Interference 3 | . . 3 Matter Decay 1 | . . 1 Short Circuit 1 | . . 1 Siege Activations . | . . . Martial Activations . | . . . Shielding Activations . | . . . Robots Disrupted . | . . . Combat Hostiles . | . . . Robots Corrupted . | . . . Combat Hostiles . | . . . Parts Fried . | . . . Impact Corruptions . | . . . Robots Melted . | . . . Combat Hostiles . | . . . Parts Melted 3 | . 2 1 Heat Transferred 1691 | . 592 1099 Parts Sabotaged . | . . . Parts Stolen . | . . . Parts Stripped . | . . . Power Chain Reactions . | . . . Alert | -11 -10 -9 ------- Run | Yrd Mat Mat Maximum Alert Level 1 | . 1 . Low Security (%) 98 | 100 97 100 Level 1 1 | . 2 . Level 2 . | . . . Level 3 . | . . . Level 4 . | . . . Level 5 . | . . . High Security . | . . . Max Security . | . . . Peak Influence 218 | . 218 50 Initial 18 | . . 18 Average 63 | . 95 10 Influence Increases 661 | . 531 130 Destroy 0b10 Robot/C 380 | . 280 100 Destroy 0b10 Robot/NC 30 | . 20 10 Destroy Leader 92 | . 72 20 Successful Hack 13 | . 13 . Disable Machine 36 | . 36 . Destroy Structure 95 | . 95 . Lose Combat Pursuer 15 | . 15 . Influence Decreases 661 | . 480 181 Entered New Map 33 | . . 33 Time Decay 518 | . 410 108 Lost Part 110 | . 70 40 Squads Dispatched 7 | . 4 3 Investigation 6 | . 4 2 Extermination . | . . . Reinforcement 1 | . . 1 Assault . | . . . Garrison . | . . . Intercept . | . . . Searches Triggered . | . . . Construction Impeded . | . . . Haulers Reinforced . | . . . Active Scanning Responses . | . . . Cargo Convoy Interrupts . | . . . Stealth | -11 -10 -9 --------- Run | Yrd Mat Mat Distress Signals 3 | . 1 2 Communications Jammed . | . . . Distress Signals . | . . . Times Spotted 32 | . 19 13 Peak Tracking Total 8 | . 4 8 Tactical Retreats 1 | . 1 . Traps | -11 -10 -9 ------- Run | Yrd Mat Mat Traps Triggered 1 | . 1 . Indirectly . | . . . Trap Hack Attempts . | . . . Triggered . | . . . Disarmed . | . . . Reprogrammed . | . . . Reused . | . . . Traps Extracted . | . . . Installed . | . . . Triggered . | . . . Machines | -11 -10 -9 ---------- Run | Yrd Mat Mat Machines Disabled 4 | . 4 . Max in Single Turn 2 | . 2 . Machines Repaired . | . . . Machines Dismantled . | . . . Machines Sabotaged . | . . . Overloaded Fab Kills . | . . . Hacking | -11 -10 -9 --------- Run | Yrd Mat Mat Machines Accessed 9 | . 5 4 Terminals 8 | . 5 3 Fabricators . | . . . Repair Stations . | . . . Recycling Units . | . . . Scanalyzers 1 | . . 1 Garrison Access . | . . . Total Hacks 28 | . 16 12 Successful 7 | . 4 3 Failed 21 | . 12 9 Catastrophic 8 | . 4 4 Database Lockouts . | . . . Manual 20 | . 11 9 Terminals 26 | . 16 10 Fabricators . | . . . Repair Stations . | . . . Recycling Units . | . . . Scanalyzers 2 | . . 2 Garrison Access . | . . . Terminal Hacks 5 | . 4 1 Record 2 | . 2 . Branch Access Points 2 | . 1 1 Surveillance Status 1 | . 1 . Fabricator Hacks . | . . . Repair Station Hacks . | . . . Recycling Unit Hacks . | . . . Scanalyzer 2 | . . 2 Insert Component 1 | . . 1 Analyze 1 | . . 1 Garrison Access Hacks . | . . . Unauthorized Hacks . | . . . Terminals . | . . . Fabricators . | . . . Repair Stations . | . . . Recycling Units . | . . . Scanalyzers . | . . . Garrison Access . | . . . Data Cores Recovered . | . . . Used . | . . . Hacking Detections 8 | . 5 3 Full Trace Events 8 | . 5 3 Feedback Events . | . . . Feedback Blocked . | . . . Robot Schematics Acquired . | . . . Robots Built . | . . . Authchips . | . . . Time . | . . . Total Robot Build Rating . | . . . Part Schematics Acquired 1 | . . 1 Parts Built . | . . . Authchips . | . . . Time . | . . . Total Part Build Rating . | . . . Parts Repaired . | . . . Time . | . . . Parts Recycled . | . . . Recycled Matter . | . . . Retrieved Matter . | . . . Retrieved Components . | . . . Parts Scanalyzed 1 | . . 1 Part Schematics Acquired 1 | . . 1 Parts Damaged . | . . . Bothacking | -11 -10 -9 ------------ Run | Yrd Mat Mat Used RIF Installer . | . . . Robots Hacked . | . . . Non-combat . | . . . Combat . | . . . Robot Hacks Applied . | . . . Relay Couplers Released . | . . . Fabnet Peak Effective % . | . . . Robots Rewired . | . . . Allies Hacked . | . . . Hacks Repelled . | . . . Allies | -11 -10 -9 -------- Run | Yrd Mat Mat Total Allies . | . . . Largest Group . | . . . Highest-Rated Group . | . . . Highest-Rated Ally . | . . . Total Orders . | . . . Ally Attacks . | . . . Total Damage . | . . . Kills . | . . . Allies Corrupted . | . . . Allies Melted . | . . . Intel | -11 -10 -9 ------- Run | Yrd Mat Mat Active Infowar (turns) 553 | . 553 . Sensors 553 | . 553 . Robot Analysis Total . | . . . Derelict Logs Recovered . | . . . Drone Launches . | . . . Drone Recoveries . | . . . Exploration | -11 -10 -9 ------------- Run | Yrd Mat Mat Turns Passed 1396 | 119 886 391 Spaces Moved 676 | 73 452 151 Core 44 | 4 36 4 Treads 614 | 60 416 138 Legs 9 | . . 9 Wheels 9 | 9 . . Hover . | . . . Flight . | . . . Fastest Speed 50 | 50 160 120 Average Speed 169 | 144 163 202 Slowest Speed 300 | 160 200 300 Overloaded Moves . | . . . Propulsion Burnouts . | . . . Robots Hopped . | . . . Potential Cave-ins . | . . . Cave-ins Triggered . | . . . Exploration Rate (%) 27 | 5 64 14 Regions Visited 2 Branch Regions . Pre-discovered Areas . | . . . Known Exits Taken . | . . . Unknown Exits Taken 2 | 1 1 . Scrap Searched . | . . . Spaces Dug . | . . . Terrain Destroyed 92 | . 92 . Melee . | . . . Projectile . | . . . AOE 92 | . 92 . Terrain Rammed . | . . . Walls Destroyed . | . . . Machines Disabled . | . . . Actions | -11 -10 -9 --------- Run | Yrd Mat Mat Total 803 | 85 523 195 Wait 4 | . 2 2 Move 674 | 72 451 151 Hop . | . . . Pick Up 8 | 5 3 . Fast Attach 16 | 5 5 6 Attach 9 | 2 2 5 Detach 1 | . 1 . Swap 6 | . 5 1 Drop 8 | 1 4 3 Fire 67 | . 48 19 Melee . | . . . Ram 1 | . . 1 Kick 7 | . . 7 Crush 2 | . 2 . Escape Stasis . | . . . Rewire . | . . . Trap . | . . . Miscellaneous . | . . . Route ------- -11/Scrapyard -10/Materials (discovered 2 exits: *Mat / Min) -9/Materials (discovered 1 exit: Min) History --------- Turn | Location | Event 15 | -11/Scrapyard | Discovered new exit (range 16) 120 | -11/Scrapyard | Entered Materials 182 | -10/Materials | Identified exit to Mines 304 | -10/Materials | Build established: Mutant 755 | -10/Materials | Core integrity fell below 50% 791 | -10/Materials | Lost 5 parts (1p1n1u2w) 980 | -10/Materials | Discovered new exit (range 13) 1006 | -10/Materials | Entered another Materials area 1006 | -9/Materials | Evolved 2 slots: Power x1, Propulsion x1 1124 | -9/Materials | Identified exit to Mines 1371 | -9/Materials | Core integrity fell below 50% 1391 | -9/Materials | Core integrity fell below 20% 1397 | -9/Materials | Destroyed by G-34 Mercenary with Small Laser Last Messages --------------- Lgt. Treads destroyed. Med. Laser destroyed. Ion Engine destroyed. Lgt. Ion Engine destroyed. Acquired Aluminum Leg. Acquired 41 matter. Acquired 17 matter. Critical hit (Burn: +37). Acquired Aluminum Leg. Kicked L-31 Rogue. Kicked L-31 Rogue out of the way. Kicked L-31 Rogue. Aluminum Leg destroyed. Kicked L-31 Rogue out of the way. Kicked L-31 Rogue. Aluminum Leg destroyed. Acquired Aluminum Leg. Kicked L-31 Rogue. Aluminum Leg destroyed. Slammed into L-31 Rogue. Map ----- +----------------------------------------------------+ | ?????????????????????????????????????????????????? | | ?????????????????????????????????????????????????? | | ?????????????????????????????????????????????????? | | ?????????????????????????????????????????????????? | | ?????????????????????????????????????????????????? | | ?????????????????????????????????????????????????? | | ?????????????????????????????????????????????????? | | ?????????????????????????????????????????????????? | | ?????????????????????????????????????????????????? | | ?????????????????????????????????????????????????? | | ?????????????????????????????????????????????????? | | ?????????????????????????????????????????????????? | | ?????????????????????????????????????????????????? | | ?????????????????????????????????????????????????? | | ?????????????????????????????????????????????????? | | ?????????????????????????????????????????????????? | | ?????????????????????????????????????????????????? | | ???????????????????????#######???????????????????? | | ???????????????????# #???????????????? | | ???????????????????# """" """" #???????????????? | | ???????????????????? """" """" ????????????????? | | ??????????????????????"""" """"??????????????????? | | ???????????????????# ?? ???????????????????? | | ???????????????????? ?? !????????????????????? | | ?????????????????#####+###g################### # | | ???????????????+ l@% g | | ?????????????????## #####%% Y g | | ??????????????????? ????# k ^ | | ??????????????????# #???###########w###########+?? | | ??????????????????# #?############ #???????????? | | ??????????????????# #?# ## T #???????????? | | ??????????????????# #?# ## #???????????? | | ??????????????????# #?# + #???????????? | | ??????????????????# #?# !| ## #???????????? | | ???????????????####+#### !| ## #???????????? | | ???????????????# # ! T# #???????????? | | ???????????????#""" + ######???????????? | | ???????????????#"R # #????????????????? | | ???????????????#""" # """ #????????????????? | | ???????????????# # """ #????????????????? | | ???????????????######### """ #????????????????? | | ????????????????######## ################## | | ????????????????# #!* | | ????????????????# #%[""" | | ????????????????#""" #!!""" | | ????????????????#""" # """ | | ????????????????#""" / *%= | | ????????????????# # ! ######## | | ????????????????######## # # | | ?????????????????# # # | +----------------------------------------------------+ Best States ------------- Heat Dissipation 28 Energy Generation 15 Energy Capacity 400 Matter Stores 300 Matter Capacity 300 Sight Range 16 Robot Scan Range 14 Terrain Scan Density 85 Resistance: KI 20 Resistance: TH 20 Resistance: EX 20 Resistance: EM 20 Resistance: I 20 Resistance: S 20 Resistance: P 20 Evasion (%) 44 Recoil Reduction 2 Offensive Hacking 10 Item Schematics ----------------- Ion Engine | -9/Materials | Scanalyzed Robot Schematics ------------------ None Fabricated ------------ Nothing Repaired ---------- Nothing Alien Tech Used ----------------- None Achievements -------------- None Challenges ------------ None Game ------ Seed IonicAntimissileBooster Manual? 0 Play Time 00:13:25 Cumulative 12.1 hours Start 2025.06.09 @ 12:49:59 End 2025.06.09 @ 13:09:24 Sessions 1 Manual Loads 0 Difficulty Adventurer Special Mode None Game No. 33 Rogue 0 Adventurer 33 Explorer 0 Win Type - Total 0 Types 0/0/0/0/0/0/0/0/0/0 Lore% 15 Gallery% 14 Achievement% 17 Wizard Run 0 Options --------- Layout 1 ASCII 0 Keyboard 0 Movement Arrows Keybinds 0 Fullscreen 1 Font 36/Smallcaps Map View 50x43 Zoom Use 0% Tactical HUD 0 Map Filters NONE Filters NONE Steam 1 RUN: 40229eaf-82be-4457-908a-b9f79f81cbe8